bitfinex/quotes_BTCUSD_20250110
["timestamp","ask_amount","ask_price","bid_price","bid_amount"]
[1736484381799,0.00013408,93953.0,93949.0,0.0822]
[1736484382008,0.00013408,93953.0,93952.0,0.212874]
[1736484383316,0.00013408,93953.0,93952.0,0.221874]
[1736484383950,0.00013408,93953.0,93952.0,0.009]
[1736484384887,0.15013408,93953.0,93952.0,0.009]
[1736484385637,0.15,93952.0,93951.0,0.0822]
[1736484386269,0.362876,93951.0,93950.0,0.0479]
[1736484386716,0.45676735,93951.0,93950.0,0.0479]
[1736484386862,0.362876,93951.0,93950.0,0.0479]
[1736484387264,0.36274785,93951.0,93950.0,0.0479]
[1736484389190,0.36274785,93951.0,93950.0,0.0489]
[1736484389392,0.15,93951.0,93950.0,0.0489]
[1736484389801,0.15,93951.0,93950.0,0.0479]
[1736484392102,0.15,93951.0,93950.0,0.0509]
[1736484392311,0.15,93951.0,93950.0,0.0479]
[1736484392668,0.15,93951.0,93950.0,0.0489]
[1736484392874,0.15,93951.0,93950.0,0.14101]
[1736484393105,0.15,93951.0,93950.0,0.1295]
[1736484393683,0.15,93951.0,93950.0,0.1285]
[1736484394901,0.15,93951.0,93950.0,0.1275]
[1736484395370,0.15,93951.0,93950.0,0.1305]
[1736484395857,0.15,93951.0,93950.0,0.1285]
[1736484396059,0.15,93951.0,93950.0,0.1315]
[1736484396256,0.15,93951.0,93950.0,0.1285]
[1736484396461,0.15,93951.0,93950.0,0.1275]
[1736484396602,0.15,93951.0,93950.0,0.1315]
[1736484396806,0.15,93951.0,93950.0,0.1325]
[1736484400540,0.18631665,93951.0,93950.0,0.0529]
[1736484400966,0.15,93951.0,93950.0,0.0529]
[1736484401181,0.15,93951.0,93950.0,0.005]
[1736484401404,0.359186,93951.0,93950.0,0.001]
[1736484401632,0.59855,93951.0,93950.0,0.004]
[1736484401838,0.72930176,93951.0,93950.0,0.003]
[1736484402044,0.72930176,93951.0,93931.0,0.079]
[1736484402277,0.212933,93926.0,93925.0,0.079]
[1736484402606,0.212933,93926.0,93920.0,0.0499]
[1736484403226,0.2342263,93926.0,93920.0,0.0499]
[1736484403575,0.212933,93926.0,93920.0,0.0499]
[1736484403786,0.15,93940.0,93920.0,0.0499]
[1736484403787,0.212928,93929.0,93920.0,0.0499]
[1736484403989,0.15,93945.0,93921.0,0.21400873]
[1736484404211,0.15,93943.0,93925.0,0.212934]
[1736484404426,0.15,93943.0,93926.0,0.1052834]
[1736484404749,0.15,93943.0,93927.0,0.212931]
[1736484405089,0.15,93943.0,93926.0,0.079]
[1736484405977,0.15,93943.0,93927.0,0.0499]
[1736484406236,0.15,93943.0,93928.0,0.08006447]
[1736484406611,0.212879,93950.0,93928.0,0.16790872]
[1736484406811,0.01815663,93943.0,93928.0,0.16790872]
[1736484407011,0.15,93947.0,93929.0,0.212926]
[1736484407225,0.15,93947.0,93930.0,0.00106448]
[1736484407427,0.15,93947.0,93929.0,0.212926]
[1736484407916,0.15,93949.0,93929.0,0.212926]
[1736484408134,0.00013408,93953.0,93928.0,0.079]
[1736484408135,0.15,93945.0,93928.0,0.079]
[1736484408331,0.212904,93939.0,93928.0,0.079]
[1736484408705,0.212908,93937.0,93928.0,0.079]
[1736484409511,0.212908,93937.0,93928.0,0.081]
[1736484409715,0.15,93938.0,93928.0,0.079]
[1736484410113,0.15,93938.0,93928.0,0.082]
[1736484411631,0.15,93938.0,93928.0,0.079]
[1736484411980,0.15,93936.0,93928.0,0.081]
[1736484412161,0.2075812,93936.0,93928.0,0.079]
[1736484412575,0.2075812,93936.0,93928.0,0.08]
[1736484413012,0.15,93938.0,93928.0,0.079]
[1736484413220,0.15,93938.0,93928.0,0.08]
[1736484413897,0.15,93936.0,93928.0,0.08]
[1736484416338,0.15,93934.0,93928.0,0.079]
[1736484416508,0.09569095,93934.0,93928.0,0.079]
[1736484416977,0.20374109,93937.0,93928.0,0.079]
[1736484417089,0.20374109,93937.0,93928.0,0.08]
[1736484417706,0.01818748,93938.0,93928.0,0.08]
[1736484417918,0.212894,93944.0,93928.0,0.08]
[1736484418122,0.212894,93944.0,93929.0,0.0342836]
[1736484418820,0.00013408,93953.0,93929.0,0.2472096]
[1736484419041,0.01801005,93944.0,93931.0,0.076]
[1736484419240,0.212874,93952.0,93933.0,0.076]
[1736484419442,0.00013408,93953.0,93938.0,0.212905]
[1736484419619,0.002,93944.0,93934.0,0.212915]
[1736484419821,0.00013408,93953.0,93934.0,0.212915]
[1736484419822,0.212874,93952.0,93934.0,0.212915]
[1736484420201,0.003,93949.0,93934.0,0.212915]
[1736484420363,0.212874,93952.0,93935.0,0.05929524]
[1736484421282,0.212874,93952.0,93933.0,0.076]
[1736484421283,0.212876,93951.0,93933.0,0.076]
[1736484421432,0.212879,93950.0,93933.0,0.076]
[1736484421648,0.0183144,93953.0,93933.0,0.076]
[1736484421844,0.0381433,93952.0,93933.0,0.076]
[1736484422054,0.0381433,93952.0,93934.0,0.004]
[1736484422467,0.212881,93949.0,93933.0,0.076]
[1736484422669,0.002,93950.0,93934.0,0.212915]
[1736484422873,0.212881,93949.0,93933.0,0.076]
[1736484423089,0.24316895,93949.0,93933.0,0.076]
[1736484425273,0.212878,93951.0,93934.0,0.212915]
[1736484426734,0.212878,93951.0,93933.0,0.076]
[1736484428543,0.212878,93951.0,93933.0,0.07706446]
[1736484433741,0.15,93950.0,93934.0,0.212915]
[1736484434577,0.212881,93949.0,93933.0,0.077]
[1736484434772,0.212881,93949.0,93933.0,0.07806446]
[1736484435531,0.212881,93949.0,93933.0,0.11288645]
[1736484435822,0.362874,93952.0,93933.0,0.11188645]
[1736484436038,0.362874,93952.0,93934.0,0.002]
[1736484436244,0.362874,93952.0,93933.0,0.11188645]
[1736484436654,0.362874,93952.0,93933.0,0.11588645]
[1736484436808,0.15,93948.0,93933.0,0.11288645]
[1736484437218,0.15,93948.0,93934.0,0.001]
[1736484437419,0.15,93948.0,93933.0,0.11288645]
[1736484438089,0.15,93948.0,93933.0,0.11188645]
[1736484438266,0.15,93948.0,93934.0,0.02517984]
[1736484439615,0.15,93948.0,93934.0,0.02817984]
[1736484439979,0.15,93948.0,93934.0,0.02917984]
[1736484440677,0.14967,93948.0,93934.0,0.02917984]
[1736484440992,0.14967,93948.0,93935.0,0.06124113]
[1736484441565,0.212885,93947.0,93935.0,0.06124113]
[1736484441904,0.212881,93949.0,93935.0,0.06124113]
[1736484442323,0.212881,93949.0,93935.0,0.06524113]
[1736484442662,0.212881,93949.0,93935.0,0.06224113]
[1736484442868,0.15,93948.0,93935.0,0.06524113]
[1736484443073,0.15,93948.0,93935.0,0.06624113]
[1736484443304,0.15,93948.0,93935.0,0.06224113]
[1736484443513,0.15,93948.0,93935.0,0.06524113]
[1736484443829,0.15,93948.0,93935.0,0.06224113]
[1736484444042,0.15,93948.0,93935.0,0.001]
[1736484444261,0.15,93946.0,93935.0,0.001]
[1736484444599,0.15,93946.0,93933.0,0.076]
[1736484444985,0.15,93946.0,93935.0,0.001]
[1736484445390,0.15,93948.0,93935.0,0.003]
[1736484445602,0.15,93948.0,93933.0,0.076]
[1736484445819,0.15,93948.0,93933.0,0.077]
[1736484446003,0.15,93948.0,93933.0,0.081]
[1736484446184,0.15,93948.0,93933.0,0.076]
[1736484446632,0.15,93951.0,93935.0,0.004]
[1736484446817,0.15,93951.0,93935.0,0.001]
[1736484448299,0.15,93949.0,93934.0,0.03354915]
[1736484448500,0.15,93949.0,93933.0,0.288917]
[1736484448775,0.15,93949.0,93935.0,0.002]
[1736484449668,0.15,93949.0,93934.0,0.001]
[1736484449877,0.15,93949.0,93935.0,0.003]
[1736484450284,0.15,93949.0,93935.0,0.004]
[1736484451033,0.15,93949.0,93935.0,0.0591344]
[1736484452040,0.15,93947.0,93935.0,0.0591344]
[1736484452440,0.15,93947.0,93935.0,0.004]
[1736484452784,0.15,93947.0,93935.0,0.003]
[1736484453301,0.15,93947.0,93935.0,0.004]
[1736484453721,0.15,93947.0,93935.0,0.001]
[1736484454107,0.15,93947.0,93935.0,0.005]
[1736484456843,0.0183144,93953.0,93937.0,0.0463]
[1736484457051,0.0183144,93953.0,93941.0,0.0828]
[1736484457236,0.00013408,93953.0,93950.0,0.212878]
[1736484457565,0.00013408,93953.0,93952.0,0.341974]
[1736484459408,0.00013408,93953.0,93952.0,0.1291]
[1736484459620,0.00013408,93953.0,93929.0,0.1]
[1736484459621,0.00013408,93953.0,93941.0,0.1301]
[1736484459835,0.0828,93943.0,93941.0,0.001]
[1736484460040,0.15,93941.0,93922.0,0.0828]
[1736484460248,0.00031557,93942.0,93922.0,0.0828]
[1736484460457,0.00031557,93940.0,93922.0,0.0828]
[1736484460685,0.03406781,93941.0,93922.0,0.0828]
[1736484460829,0.15,93939.0,93922.0,0.0828]
[1736484461130,0.1,93949.0,93922.0,0.0828]
[1736484461131,0.15,93937.0,93922.0,0.0828]
[1736484461346,0.212901,93941.0,93926.0,0.0828]
[1736484461556,0.21289,93946.0,93927.0,0.00106452]
[1736484461784,0.00113408,93953.0,93927.0,0.00106452]
[1736484461785,0.15,93943.0,93927.0,0.00106452]
[1736484461990,0.21292,93932.0,93926.0,0.0828]
[1736484462421,0.42584,93932.0,93926.0,0.0828]
[1736484462605,0.15,93927.0,93925.0,0.0463]
[1736484462894,0.15,93927.0,93914.0,0.1291]
[1736484463107,0.15,93927.0,93914.0,0.0463]
[1736484463317,0.15,93917.0,93907.0,0.0828]
[1736484464615,0.15,93921.0,93912.0,0.00065978]
[1736484465425,0.15,93921.0,93913.0,0.082]
[1736484465663,0.22832595,93928.0,93913.0,0.082]
[1736484465858,0.01539695,93928.0,93914.0,0.0454]
[1736484466316,0.15,93930.0,93914.0,0.0454]
[1736484466547,0.22855319,93931.0,93914.0,0.0454]
[1736484466923,0.001,93928.0,93914.0,0.0454]
[1736484467149,0.15,93930.0,93914.0,0.0454]
[1736484467379,0.212931,93927.0,93914.0,0.0454]
[1736484467584,0.15,93921.0,93914.0,0.0454]
[1736484469134,0.15,93921.0,93914.0,0.0464]
[1736484469536,0.15,93921.0,93914.0,0.0454]
[1736484469754,0.15,93921.0,93914.0,0.0474]
[1736484470107,0.15,93921.0,93914.0,0.0454]
[1736484470515,0.15,93921.0,93914.0,0.0474]
[1736484471828,0.15,93919.0,93914.0,0.0474]
[1736484472608,0.15,93917.0,93914.0,0.0474]
[1736484472812,0.15,93917.0,93914.0,0.0454]
[1736484473166,0.15,93917.0,93914.0,0.0484]
[1736484473944,0.057589,93919.0,93914.0,0.0454]
[1736484474154,0.15,93921.0,93914.0,0.0504]
[1736484474564,0.15,93921.0,93914.0,0.0494]
[1736484475127,0.15,93921.0,93914.0,0.0504]
[1736484475462,0.212943,93922.0,93914.0,0.0454]
[1736484475646,0.15,93917.0,93914.0,0.0454]
[1736484476528,0.212956,93916.0,93914.0,0.0474]
[1736484476855,0.0575907,93915.0,93912.0,0.00065978]
[1736484477067,0.212956,93916.0,93914.0,0.004]
[1736484477440,0.212956,93916.0,93912.0,0.00065978]
[1736484477744,0.212949,93919.0,93912.0,0.00065978]
[1736484478390,0.212949,93919.0,93914.0,0.001]
[1736484478793,0.212949,93919.0,93914.0,0.004]
[1736484478903,0.15,93922.0,93914.0,0.004]
[1736484479113,0.15,93922.0,93912.0,0.00165978]
[1736484479363,0.15,93922.0,93913.0,0.0776]
[1736484479968,0.15,93922.0,93914.0,0.003]
[1736484480289,0.15,93922.0,93913.0,0.0776]
[1736484480591,0.15,93920.0,93913.0,0.0786]
[1736484480748,0.15,93920.0,93914.0,0.001]
[1736484481350,0.15,93920.0,93913.0,0.0786]
[1736484481748,0.15,93918.0,93913.0,0.0786]
[1736484481954,0.15,93918.0,93913.0,0.0776]
[1736484482204,0.15,93918.0,93914.0,0.001]
[1736484482570,0.15,93918.0,93913.0,0.0776]
[1736484483013,0.15,93922.0,93913.0,0.0776]
[1736484483429,0.15,93922.0,93913.0,0.0796]
[1736484483638,0.15,93922.0,93913.0,0.0776]
[1736484483982,0.15,93922.0,93914.0,0.0491]
[1736484484188,0.01506249,93925.0,93921.0,0.0809]
[1736484484414,0.425822,93936.0,93921.0,0.0809]
[1736484484632,0.212915,93934.0,93921.0,0.0809]
[1736484485267,0.15,93931.0,93921.0,0.0809]
[1736484485410,0.15,93931.0,93922.0,0.0478]
[1736484487010,0.15,93931.0,93922.0,0.0488]
[1736484488223,0.15,93931.0,93922.0,0.0478]
[1736484488636,0.15,93931.0,93922.0,0.0498]
[1736484488861,0.4414514,93936.0,93922.0,0.0498]
[1736484489010,0.4414514,93936.0,93923.0,0.0828]
[1736484489452,0.15,93935.0,93923.0,0.0828]
[1736484489666,0.15,93933.0,93923.0,0.0828]
[1736484490266,0.15,93931.0,93923.0,0.0828]
[1736484491741,0.15,93933.0,93923.0,0.0828]
[1736484492798,0.15,93933.0,93923.0,0.1171547]
[1736484493012,0.0156294,93936.0,93924.0,0.07766462]
[1736484493146,0.0156294,93936.0,93927.0,0.212931]
[1736484493357,0.212897,93942.0,93929.0,0.0766]
[1736484493556,0.212897,93942.0,93928.0,0.0486]
[1736484493762,0.212897,93942.0,93930.0,0.0766]
[1736484494097,0.15,93941.0,93930.0,0.0766]
[1736484494273,0.15,93939.0,93930.0,0.0766]
[1736484496481,0.15,93939.0,93930.0,0.0786]
[1736484496678,0.15,93941.0,93930.0,0.0786]
[1736484497265,0.15,93939.0,93930.0,0.0786]
[1736484498734,0.15,93939.0,93930.0,0.0766]
[1736484499165,0.15,93939.0,93930.0,0.0776]
[1736484499588,0.15,93939.0,93930.0,0.0766]
[1736484499783,0.15,93939.0,93930.0,0.0786]
[1736484503127,0.15,93937.0,93930.0,0.0786]
[1736484504436,0.15,93939.0,93930.0,0.0796]
[1736484504674,0.15,93941.0,93930.0,0.0796]
[1736484504878,0.15,93939.0,93930.0,0.0796]
[1736484505209,0.15,93939.0,93930.0,0.0776]
[1736484505489,0.15,93939.0,93930.0,0.0796]
[1736484505783,0.15,93939.0,93930.0,0.0766]
[1736484506193,0.15,93937.0,93930.0,0.0786]
[1736484507603,0.15,93937.0,93930.0,0.0796]
[1736484508184,0.15,93937.0,93930.0,0.0776]
[1736484508518,0.15,93937.0,93930.0,0.0766]
[1736484508712,0.15,93937.0,93930.0,0.0796]
[1736484508957,0.15,93937.0,93930.0,0.0766]
[1736484509253,0.15,93937.0,93930.0,0.0786]
[1736484510155,0.15,93937.0,93930.0,0.0766]
[1736484510397,0.212895,93943.0,93930.0,0.0766]
[1736484511443,0.212895,93943.0,93930.0,0.0786]
[1736484511758,0.212897,93942.0,93930.0,0.0786]
[1736484512352,0.212897,93942.0,93930.0,0.0766]
[1736484512962,0.212897,93942.0,93930.0,0.11052005]
[1736484513545,0.212897,93942.0,93930.0,0.0766]
[1736484513849,0.21292,93932.0,93930.0,0.0766]
[1736484514843,0.21292,93932.0,93930.0,0.0776]
[1736484515268,0.21392,93932.0,93930.0,0.0776]
[1736484515995,0.21292,93932.0,93930.0,0.0776]
[1736484516236,0.21392,93932.0,93930.0,0.0776]
[1736484516415,0.21292,93932.0,93930.0,0.0766]
[1736484516786,0.21392,93932.0,93930.0,0.0766]
[1736484517211,0.21379188,93932.0,93930.0,0.0766]
[1736484523553,0.21279188,93932.0,93930.0,0.0766]
[1736484523972,0.22704068,93932.0,93930.0,0.0766]
[1736484525367,0.43996068,93932.0,93928.0,0.0486]
[1736484527099,0.0142488,93932.0,93918.0,0.082]
[1736484527302,0.15,93930.0,93917.0,0.0498]
[1736484527512,0.212944,93921.0,93917.0,0.0498]
[1736484528476,0.212944,93921.0,93912.0,0.08265978]
[1736484528477,0.15,93918.0,93912.0,0.00065978]
[1736484528727,0.15,93914.0,93912.0,0.00065978]
[1736484529702,0.362963,93913.0,93912.0,0.00065978]
[1736484530092,0.362963,93913.0,93912.0,0.00465978]
[1736484530518,0.36330109,93913.0,93912.0,0.00565978]
[1736484530946,0.36330109,93913.0,93912.0,0.00065978]
[1736484531483,0.36330109,93913.0,93912.0,0.00165978]
[1736484532020,0.36349365,93913.0,93912.0,0.00165978]
[1736484532286,0.36330109,93913.0,93912.0,0.00156626]
[1736484532517,0.3768457,93913.0,93912.0,0.00556626]
[1736484532763,0.3768457,93913.0,93912.0,0.00056626]
[1736484533500,0.3788457,93913.0,93912.0,0.00056626]
[1736484533713,0.3838457,93913.0,93912.0,0.00056626]
[1736484533961,0.3818457,93913.0,93912.0,0.00056626]
[1736484534210,0.3838457,93913.0,93912.0,0.00056626]
[1736484534682,0.3818457,93913.0,93912.0,0.00056626]
[1736484535402,0.4768457,93913.0,93912.0,0.00056626]
[1736484535872,0.4818457,93913.0,93912.0,0.00056626]
[1736484536073,0.4838457,93913.0,93912.0,0.00056626]
[1736484536581,0.4818457,93913.0,93912.0,0.00056626]
[1736484536826,0.4768457,93913.0,93912.0,0.00056626]
[1736484537276,0.4838457,93913.0,93912.0,1e-08]
[1736484537498,0.48350761,93913.0,93912.0,1e-08]
[1736484537714,0.48392452,93913.0,93912.0,1e-08]
[1736484538228,0.48192452,93913.0,93912.0,1e-08]
[1736484538674,0.47692452,93913.0,93912.0,1e-08]
[1736484538913,0.48192452,93913.0,93912.0,1e-08]
[1736484539476,0.48392452,93913.0,93912.0,1e-08]
[1736484541076,0.49132452,93913.0,93912.0,1e-08]
[1736484543924,2.247561,93912.0,93900.0,0.0001704]
[1736484544144,0.36299,93901.0,93900.0,0.0001704]
[1736484544598,0.15,93900.0,93897.0,0.0001704]
[1736484544814,0.362997,93898.0,93897.0,0.0001704]
[1736484545258,0.36346139,93898.0,93897.0,0.0001704]
[1736484545452,0.52374239,93898.0,93897.0,0.0001704]
[1736484545653,0.52374239,93898.0,93897.0,0.0011704]
[1736484546096,0.52374239,93898.0,93897.0,0.0001704]
[1736484546293,0.52874239,93898.0,93897.0,0.0001704]
[1736484546893,0.53074239,93898.0,93897.0,0.0001704]
[1736484547310,0.52874239,93898.0,93897.0,0.0001704]
[1736484547800,0.53074239,93898.0,93897.0,0.0001704]
[1736484548060,0.52574239,93898.0,93897.0,0.0001704]
[1736484548232,0.52974239,93898.0,93897.0,0.0001704]
[1736484548605,0.52574239,93898.0,93897.0,0.0001704]
[1736484548811,0.52974239,93898.0,93897.0,0.0001704]
[1736484549015,0.52774239,93898.0,93897.0,0.0001704]
[1736484549189,0.36746139,93898.0,93897.0,0.0001704]
[1736484549388,0.81178139,93898.0,93897.0,0.0001704]
[1736484549704,0.80938139,93898.0,93897.0,0.0001704]
[1736484549885,0.80738139,93898.0,93897.0,0.0001704]
[1736484550061,0.80938139,93898.0,93897.0,0.0001704]
[1736484551057,0.363008,93893.0,93881.0,0.0798]
[1736484551284,0.081,93892.0,93876.0,0.0001704]
[1736484551440,0.363022,93887.0,93876.0,0.0001704]
[1736484551645,0.984836,93887.0,93876.0,0.0001704]
[1736484551857,0.503821,93887.0,93876.0,0.0001704]
[1736484552080,0.363022,93887.0,93876.0,0.0001704]
[1736484552275,0.515298,93887.0,93876.0,0.0001704]
[1736484552474,0.49388,93887.0,93876.0,0.0001704]
[1736484552896,0.370462,93887.0,93876.0,0.0001704]
[1736484553294,0.376462,93887.0,93876.0,0.0001704]
[1736484553724,0.374462,93887.0,93876.0,0.0001704]
[1736484554710,0.3876773,93887.0,93876.0,0.0001704]
[1736484554909,0.3802373,93887.0,93885.0,0.1221]
[1736484555110,0.3772373,93887.0,93885.0,0.1221]
[1736484555316,0.3846773,93887.0,93885.0,0.1221]
[1736484555723,0.3876773,93887.0,93885.0,0.1221]
[1736484555951,0.3886773,93887.0,93885.0,0.1221]
[1736484556205,0.3846773,93887.0,93885.0,0.1221]
[1736484556410,0.3876773,93887.0,93885.0,0.1221]
[1736484556595,0.3866773,93887.0,93885.0,0.1221]
[1736484556784,0.3846773,93887.0,93885.0,0.1221]
[1736484557314,0.3846773,93887.0,93885.0,0.0451]
[1736484557518,0.7042213,93887.0,93878.0,0.0823]
[1736484557721,0.67941241,93887.0,93878.0,0.0823]
[1736484558279,0.67841241,93887.0,93878.0,0.0823]
[1736484558747,0.68241241,93887.0,93878.0,0.0823]
[1736484559516,0.38416841,93887.0,93878.0,0.0823]
[1736484560066,0.38516841,93887.0,93878.0,0.0823]
[1736484560216,0.3846773,93887.0,93878.0,0.0823]
[1736484560434,0.3876773,93887.0,93878.0,0.0823]
[1736484561280,0.38817454,93887.0,93878.0,0.0823]
[1736484561713,0.68987754,93887.0,93878.0,0.0823]
[1736484562301,0.68987754,93887.0,93876.0,0.0001704]
[1736484563115,0.363042,93878.0,93876.0,0.0001704]
[1736484563423,0.36354292,93878.0,93876.0,0.0001704]
[1736484564370,0.36354292,93878.0,93877.0,0.00021927]
[1736484564549,1.05318292,93878.0,93877.0,0.00121927]
[1736484565131,1.00460792,93878.0,93877.0,0.00121927]
[1736484565799,0.98325592,93878.0,93877.0,0.00121927]
[1736484566005,0.98425592,93878.0,93877.0,0.00121927]
[1736484566296,0.98425592,93878.0,93877.0,0.00021927]
[1736484566553,0.367042,93878.0,93877.0,0.00021927]
[1736484566730,0.366042,93878.0,93877.0,0.00021927]
[1736484567618,0.1012587,93878.0,93877.0,0.00021927]
[1736484567823,0.003,93878.0,93877.0,0.00021927]
[1736484568055,0.004,93878.0,93877.0,0.00021927]
[1736484568673,0.217042,93878.0,93877.0,0.00021927]
[1736484569655,0.224482,93878.0,93877.0,0.07711927]
[1736484569978,0.217042,93878.0,93877.0,0.07711927]
[1736484570170,0.224482,93878.0,93877.0,0.07711927]
[1736484570756,0.221482,93878.0,93877.0,0.07711927]
[1736484570979,0.223482,93878.0,93877.0,0.07711927]
[1736484571383,0.224482,93878.0,93877.0,0.07711927]
[1736484572862,0.223482,93878.0,93877.0,0.07711927]
[1736484573646,0.220482,93878.0,93877.0,0.07711927]
[1736484574051,0.223482,93878.0,93877.0,0.07711927]
[1736484574454,0.004,93878.0,93877.0,0.12681927]
[1736484575313,0.15,93881.0,93877.0,0.12681927]
[1736484575428,0.003,93878.0,93877.0,0.12681927]
[1736484575632,0.004,93878.0,93877.0,0.12681927]
[1736484576198,0.003,93878.0,93877.0,0.12681927]
[1736484577043,0.213024,93886.0,93878.0,0.0792]
[1736484577457,0.15,93885.0,93878.0,0.0792]
[1736484579405,0.15,93883.0,93878.0,0.0792]
[1736484580837,0.213024,93886.0,93878.0,0.0802]
[1736484581314,0.15,93883.0,93878.0,0.0802]
[1736484581707,0.15,93883.0,93878.0,0.0792]
[1736484582124,0.15,93881.0,93878.0,0.0792]
[1736484583895,0.213037,93880.0,93878.0,0.0792]
[1736484584070,0.15,93881.0,93880.0,0.0792]
[1736484585080,0.09820012,93882.0,93880.0,0.0792]
[1736484585321,0.0132153,93887.0,93880.0,0.0792]
[1736484585672,0.213033,93882.0,93880.0,0.0792]
[1736484586602,0.213033,93882.0,93880.0,0.0802]
[1736484586966,0.213033,93882.0,93880.0,0.0792]
[1736484587168,0.213033,93882.0,93880.0,0.0802]
[1736484589751,0.15,93881.0,93880.0,0.001]
[1736484591030,0.15,93879.0,93877.0,0.00021927]
[1736484592798,0.363042,93878.0,93877.0,0.00021927]
[1736484593538,0.363042,93878.0,93877.0,0.00221927]
[1736484593705,0.363042,93878.0,93877.0,0.00021927]
[1736484593908,0.363042,93878.0,93877.0,0.00121927]
[1736484594122,0.366042,93878.0,93877.0,0.00121927]
[1736484594331,0.366042,93878.0,93877.0,0.00021927]
[1736484594975,0.367042,93878.0,93877.0,0.00021927]
[1736484598747,0.37986076,93878.0,93877.0,0.00021927]
[1736484601634,0.01681876,93878.0,93877.0,0.14076232]
[1736484602445,0.01681876,93878.0,93877.0,0.12811927]
[1736484603280,0.01581876,93878.0,93877.0,0.12811927]
[1736484603656,0.01581876,93878.0,93877.0,0.12911927]
[1736484603867,0.01281876,93878.0,93877.0,0.12911927]
[1736484604071,0.15,93896.0,93878.0,0.0792]
[1736484604272,0.15,93896.0,93879.0,0.0792]
[1736484604473,0.15,93894.0,93881.0,0.0832]
[1736484605322,0.15,93894.0,93882.0,0.1285]
[1736484605742,0.15,93892.0,93882.0,0.1285]
[1736484606888,0.15,93896.0,93882.0,0.1285]
[1736484607621,0.15,93896.0,93882.0,0.1295]
[1736484608472,0.15,93896.0,93882.0,0.0463]
[1736484608688,0.15,93896.0,93883.0,0.0832]
[1736484608905,0.15,93899.0,93886.0,0.0768]
[1736484609124,0.15,93899.0,93887.0,0.0492]
[1736484609335,0.15,93899.0,93888.0,0.0768]
[1736484609548,0.15,93899.0,93889.0,0.03863211]
[1736484609772,0.15,93899.0,93890.0,0.0768]
[1736484610196,0.0124993,93902.0,93891.0,0.213012]
[1736484610405,0.0124993,93902.0,93892.0,0.1223]
[1736484610623,0.15,93903.0,93893.0,0.0768]
[1736484611058,0.16196009,93903.0,93893.0,0.0768]
[1736484611477,0.16196009,93903.0,93894.0,0.0768]
[1736484611478,0.001,93902.0,93894.0,0.0768]
[1736484611896,0.01196009,93903.0,93894.0,0.0768]
[1736484612295,0.15,93905.0,93894.0,0.0768]
[1736484612692,0.1620363,93905.0,93894.0,0.0768]
[1736484614411,0.15,93903.0,93894.0,0.0818]
[1736484614608,0.15,93903.0,93894.0,0.0788]
[1736484615011,0.15,93903.0,93894.0,0.0818]
[1736484615268,0.15,93903.0,93894.0,0.0768]
[1736484615640,0.15,93903.0,93894.0,0.0808]
[1736484615847,0.15,93903.0,93894.0,0.0818]
[1736484616250,0.15,93903.0,93894.0,0.0808]
[1736484617535,0.15,93901.0,93894.0,0.0808]
[1736484618388,0.15,93901.0,93894.0,0.0788]
[1736484618586,0.212975,93908.0,93894.0,0.0838]
[1736484618792,0.212975,93908.0,93894.0,0.0818]
[1736484619215,0.15,93905.0,93894.0,0.0838]
[1736484619419,0.15,93905.0,93894.0,0.0788]
[1736484619665,0.15,93905.0,93894.0,0.0768]
[1736484620065,0.15,93905.0,93894.0,0.0778]
[1736484620449,0.15,93903.0,93896.0,0.0751]
[1736484621840,0.212978,93906.0,93897.0,0.0334713]
[1736484622042,0.01192561,93908.0,93898.0,0.0751]
[1736484622242,0.01192561,93908.0,93899.0,0.0466]
[1736484622449,0.212961,93914.0,93901.0,0.0456]
[1736484622654,0.15,93913.0,93902.0,0.11892372]
[1736484622855,0.212965,93912.0,93902.0,0.0815]
[1736484624822,0.01231923,93914.0,93902.0,0.0815]
[1736484625022,0.01231923,93914.0,93904.0,0.0803]
[1736484625138,0.425908,93917.0,93904.0,0.0803]
[1736484625371,0.15,93914.0,93905.0,0.03413569]
[1736484625599,0.15,93916.0,93906.0,0.0803]
[1736484625795,0.15,93912.0,93906.0,0.0803]
[1736484626610,0.212967,93911.0,93906.0,0.0803]
[1736484626810,0.15,93910.0,93906.0,0.08034887]
[1736484628069,0.15,93910.0,93906.0,0.08134887]
[1736484628824,0.15,93910.0,93906.0,0.08534887]
[1736484629025,0.15,93910.0,93906.0,0.08634887]
[1736484629261,0.15,93910.0,93906.0,0.08134887]
[1736484629469,0.15,93910.0,93906.0,0.08534887]
[1736484629873,0.15,93910.0,93906.0,0.08134887]
[1736484631126,0.15,93910.0,93906.0,0.08534887]
[1736484631339,0.15,93910.0,93906.0,0.08734887]
[1736484631555,0.15,93910.0,93906.0,0.08234887]
[1736484631710,0.15,93910.0,93906.0,0.08734887]
[1736484631915,0.15,93910.0,93906.0,0.08534887]
[1736484632116,0.15,93910.0,93906.0,0.08234887]
[1736484632317,0.15,93910.0,93906.0,0.08734887]
[1736484632783,0.15,93910.0,93906.0,0.08534887]
[1736484633036,0.15,93910.0,93906.0,0.08734887]
[1736484634224,0.15,93910.0,93906.0,0.08234887]
[1736484634637,0.15,93910.0,93906.0,0.08734887]
[1736484634842,0.212961,93914.0,93906.0,0.08034887]
[1736484635267,0.212965,93912.0,93906.0,0.08334887]
[1736484635652,0.15,93913.0,93906.0,0.08334887]
[1736484635653,0.362976,93907.0,93906.0,0.08334887]